fUST/lending_fUST_20241009
["ID","MTS","AMOUNT","RATE_DAILY","PERIOD"]
[340068018,1728459052592,-3744.318195,0.00037403,14]
[340068019,1728459052602,-3744.318195,0.00037403,14]
[340068020,1728459052612,-3744.318195,0.00037403,14]
[340068021,1728459052621,-151.0,0.00037403,14]
[340068022,1728459052632,-154.849511,0.00037403,14]
[340068023,1728459052642,-198.338772,0.00037403,14]
[340068024,1728459052652,-198.338772,0.00037403,14]
[340068025,1728459052662,-198.338772,0.00037403,14]
[340068026,1728459052672,-198.338772,0.00037403,14]
[340068027,1728459052682,-198.338772,0.00037403,14]
[340068028,1728459052693,-432.229295,0.00037403,14]
[340068029,1728459052703,-198.338772,0.00037403,14]
[340068030,1728459052713,-432.229295,0.00037403,14]
[340068031,1728459052723,-432.229295,0.00037403,14]
[340068032,1728459052734,-432.229295,0.00037403,14]
[340068033,1728459052745,-432.229295,0.00037403,14]
[340068034,1728459052757,-432.229295,0.00037403,14]
[340068035,1728459052767,-151.0,0.00037403,14]
[340068036,1728459052776,-151.0,0.00037403,14]
[340068037,1728459052786,-151.0,0.00037403,14]
[340068038,1728459052796,-151.0,0.00037403,14]
[340068039,1728459052807,-151.0,0.00037403,14]
[340068040,1728459052817,-151.0,0.00037403,14]
[340068041,1728459052826,-151.0,0.00037403,14]
[340068042,1728459052836,-151.0,0.00037403,14]
[340068043,1728459052846,-151.0,0.00037403,14]
[340068044,1728459052856,-2755.339772,0.00037403,14]
[340068045,1728459052865,-2755.339772,0.00037403,14]
[340068046,1728459052874,-2755.339772,0.00037403,14]
[340068047,1728459052883,-2755.339772,0.00037403,14]
[340068048,1728459052893,-2755.339772,0.00037403,14]
[340068049,1728459052903,-2755.339772,0.00037403,14]
[340068050,1728459052912,-749.867642,0.00037403,14]
[340068051,1728459052922,-749.867642,0.00037403,14]
[340068052,1728459052932,-749.867642,0.00037403,14]
[340068053,1728459052941,-662193.08112904,0.00037403,35]
[340068054,1728459052951,-599.37286604,0.00037403,2]
[340068055,1728459052960,-200.0,0.00037403,7]
[340068056,1728459052970,-1117206.86394922,0.00037403,120]
[340068057,1728459052981,-340.0,0.00037403,120]
[340068058,1728459052991,-330.33129022,0.00037403,30]
[340068059,1728459053001,-194.598349,0.00037405,14]
[340068060,1728459053010,-194.598349,0.00037405,14]
[340068061,1728459053019,-151.0,0.00037405,14]
[340068062,1728459053029,-209.799474,0.00037534,2]
[340068063,1728459053039,-350.0,0.00037668,5]
[340068064,1728459053048,-190.0,0.00037877,2]
[340068065,1728459053059,-50358.28399812,0.00038,2]
[340068066,1728459053068,-194.598349,0.00038,14]
[340068067,1728459053078,-194.598349,0.00038,14]
[340068068,1728459053087,-151.0,0.00038,14]
[340068069,1728459053096,-225.492407,0.00038,14]
[340068070,1728459053107,-225.492407,0.00038,14]
[340068071,1728459053117,-168.407127,0.00038,14]
[340068072,1728459053127,-168.407127,0.00038,14]
[340068073,1728459053137,-151.0,0.00038,14]
[340068074,1728459053147,-839.794439,0.00038,14]
[340068075,1728459053156,-839.794439,0.00038,14]
[340068076,1728459053166,-151.0,0.00038,14]
[340068077,1728459053176,-151.0,0.00038,14]
[340068078,1728459053186,-151.0,0.00038,14]
[340068079,1728459053195,-246.476393,0.00038,14]
[340068080,1728459053206,-747.070307,0.00038,14]
[340068081,1728459053216,-747.070307,0.00038,14]
[340068082,1728459053228,-306.963749,0.00038,14]
[340068083,1728459053239,-151.0,0.00038,14]
[340068084,1728459053249,-306.963749,0.00038,14]
[340068085,1728459053261,-899.028115,0.00038,14]
[340068086,1728459053271,-899.028115,0.00038,14]
[340068087,1728459053280,-449.772141,0.00038,14]
[340068088,1728459053290,-449.772141,0.00038,14]
[340068089,1728459053299,-151.0,0.00038,14]
[340068090,1728459053310,-599.251107,0.00038,14]
[340068091,1728459053319,-599.251107,0.00038,14]
[340068092,1728459053329,-151.0,0.00038,14]
[340068093,1728459053339,-1966.91651,0.00038,14]
[340068094,1728459053353,-1966.91651,0.00038,14]
[340068095,1728459053363,-151.0,0.00038,14]
[340068096,1728459053373,-987.166839,0.00038,14]
[340068097,1728459053382,-151.0,0.00038,14]
[340068098,1728459053394,-987.166839,0.00038,14]
[340068099,1728459053404,-151.0,0.00038,14]
[340068100,1728459053414,-1328.300863,0.00038,14]
[340068101,1728459053427,-151.0,0.00038,14]
[340068102,1728459053438,-1328.300863,0.00038,14]
[340068103,1728459053451,-428.823346,0.00038,14]
[340068104,1728459053461,-428.823346,0.00038,14]
[340068105,1728459053471,-649.190363,0.00038,14]
[340068106,1728459053483,-649.190363,0.00038,14]
[340068107,1728459053494,-504.869163,0.00038,14]
[340068108,1728459053505,-504.869163,0.00038,14]
[340068109,1728459053516,-3744.318195,0.00038,14]
[340068110,1728459053526,-3744.318195,0.00038,14]
[340068111,1728459053539,-198.338772,0.00038,14]
[340068112,1728459053550,-198.338772,0.00038,14]
[340068113,1728459053562,-432.229295,0.00038,14]
[340068114,1728459053572,-432.229295,0.00038,14]
[340068115,1728459053582,-151.0,0.00038,14]
[340068116,1728459053592,-151.0,0.00038,14]
[340068117,1728459053602,-151.0,0.00038,14]
[340068118,1728459053612,-2755.339772,0.00038,14]
[340068119,1728459053623,-2755.339772,0.00038,14]
[340068120,1728459053634,-749.867642,0.00038,14]
[340068121,1728459053645,-450.0,0.00038216,5]
[340068122,1728459053656,-151.0,0.00038229,15]
[340068123,1728459053667,-200.0,0.0003838,38]
[340068124,1728459053677,-5000.0,0.00038659,3]
[340068125,1728459053686,-421.0,0.00038666,120]
[340068126,1728459053696,-550.0,0.00038764,5]
[340068127,1728459053707,-901.88,0.000388,2]
[340068128,1728459053717,-1500.0,0.00039246,2]
[340068129,1728459053730,-1000.0,0.00039346,5]
[340068130,1728459053740,-1500.0,0.00039346,5]
[340068131,1728459053750,-150.0,0.000395,2]
[340068132,1728459053760,-526.0,0.000395,2]
[340068133,1728459053769,-1219.0,0.000395,2]
[340068134,1728459053779,-1528.16945868,0.00039636,2]
[340068135,1728459053788,-150.0,0.00039658,2]
[340068136,1728459053798,-150.0,0.00039658,2]
[340068137,1728459053809,-150.0,0.00039658,2]
[340068138,1728459053819,-150.0,0.00039658,2]
[340068139,1728459053829,-150.0,0.00039658,2]
[340068140,1728459053839,-750.0,0.0003986,5]
[340068141,1728459053848,-2000.0,0.0004,40]
[340068142,1728459053858,-11055.5228845,0.0004,5]
[340068143,1728459053867,-500.0,0.0004,120]
[340068144,1728459053876,-200.0,0.0004,120]
[340068145,1728459053886,-850.0,0.00040408,5]
[340068146,1728459053896,-3301.09786158,0.0004057,28]
[340068147,1728459053906,-413.3241676,0.00040822,2]
[340068148,1728459053916,-261.0,0.0004086,43]
[340068149,1728459053926,-950.0,0.00040956,5]
[340068150,1728459053936,-2000.0,0.00041,41]
[340068151,1728459053945,-210.83915951,0.00041095,120]
[340068152,1728459054031,-284.7,0.00041096,30]
[340068153,1728459054043,-194.598349,0.00041096,120]
[340068154,1728459054054,-194.598349,0.00041096,120]
[340068155,1728459054065,-153.454582,0.00041096,120]
[340068156,1728459054077,-225.492407,0.00041096,100]
[340068157,1728459054090,-225.492407,0.00041096,100]
[340068158,1728459054099,-168.407127,0.00041096,120]
[340068159,1728459054109,-168.407127,0.00041096,120]
[340068160,1728459054119,-839.794439,0.00041096,120]
[340068161,1728459054131,-839.794439,0.00041096,120]
[340068162,1728459054142,-151.0,0.00041096,120]
[340068163,1728459054153,-151.0,0.00041096,120]
[340068164,1728459054164,-151.0,0.00041096,120]
[340068165,1728459054174,-388.591197,0.00041096,120]
[340068166,1728459054183,-747.070307,0.00041096,120]
[340068167,1728459054192,-747.070307,0.00041096,120]
[340068168,1728459054206,-306.963749,0.00041096,120]
[340068169,1728459054217,-151.0,0.00041096,120]
[340068170,1728459054229,-306.963757,0.00041096,120]
[340068171,1728459054242,-899.028115,0.00041096,120]
[340068172,1728459054253,-899.028115,0.00041096,120]
[340068173,1728459054263,-449.772141,0.00041096,120]
[340068174,1728459054274,-449.772142,0.00041096,120]
[340068175,1728459054286,-151.0,0.00041096,120]
[340068176,1728459054298,-599.251107,0.00041096,120]
[340068177,1728459054312,-599.251107,0.00041096,120]
[340068178,1728459054322,-151.0,0.00041096,120]
[340068179,1728459054333,-1966.91651,0.00041096,120]
[340068180,1728459054344,-1966.916506,0.00041096,120]
[340068181,1728459054356,-151.0,0.00041096,120]
[340068182,1728459054367,-987.166839,0.00041096,120]
[340068183,1728459054377,-151.0,0.00041096,120]
[340068184,1728459054386,-987.166846,0.00041096,120]
[340068185,1728459054395,-151.0,0.00041096,120]
[340068186,1728459054405,-1328.300863,0.00041096,120]
[340068187,1728459054414,-151.0,0.00041096,30]
[340068188,1728459054425,-1328.300865,0.00041096,120]
[340068189,1728459054435,-428.823346,0.00041096,120]
[340068190,1728459054445,-428.823354,0.00041096,120]
[340068191,1728459054455,-649.190363,0.00041096,120]
[340068192,1728459054464,-649.19036,0.00041096,120]
[340068193,1728459054473,-504.869163,0.00041096,120]
[340068194,1728459054483,-504.869159,0.00041096,120]
[340068195,1728459054492,-3744.318195,0.00041096,120]
[340068196,1728459054502,-3744.318194,0.00041096,120]
[340068197,1728459054512,-198.338772,0.00041096,120]
[340068198,1728459054522,-198.338769,0.00041096,120]
[340068199,1728459054531,-432.229295,0.00041096,120]
[340068200,1728459054540,-432.229296,0.00041096,120]
[340068201,1728459054550,-225.620691,0.00041096,120]
[340068202,1728459054560,-151.0,0.00041096,120]
[340068203,1728459054570,-151.0,0.00041096,120]
[340068204,1728459054581,-2755.339772,0.00041096,60]
[340068205,1728459054591,-2755.339772,0.00041096,60]
[340068206,1728459054603,-500.0,0.00041096,31]
[340068207,1728459054613,-500.0,0.00041096,31]
[340068208,1728459054624,-500.0,0.00041096,31]
[340068209,1728459054634,-500.0,0.00041096,31]
[340068210,1728459054644,-500.0,0.00041096,31]
[340068211,1728459054654,-500.0,0.00041096,31]
[340068212,1728459054665,-500.0,0.00041096,31]
[340068213,1728459054674,-500.0,0.00041096,31]
[340068214,1728459054684,-500.0,0.00041096,31]
[340068215,1728459054693,-500.0,0.00041096,31]
[340068216,1728459054704,-500.0,0.00041096,31]
[340068217,1728459054716,-500.0,0.00041096,31]
[340068218,1728459054727,-500.0,0.00041096,31]
[340068219,1728459054739,-500.0,0.00041096,31]
[340068220,1728459054749,-500.0,0.00041096,31]
[340068221,1728459054761,-500.0,0.00041096,31]
[340068222,1728459054771,-500.0,0.00041096,31]
[340068223,1728459054781,-500.0,0.00041096,31]
[340068224,1728459054790,-500.0,0.00041096,31]
[340068225,1728459054801,-500.0,0.00041096,31]
[340068226,1728459054811,-500.0,0.00041096,31]
[340068227,1728459054821,-500.0,0.00041096,31]
[340068228,1728459054830,-500.0,0.00041096,31]
[340068229,1728459054840,-500.0,0.00041096,31]
[340068230,1728459054850,-500.0,0.00041096,31]
[340068231,1728459054868,-500.0,0.00041096,31]
[340068232,1728459054886,-500.0,0.00041096,31]
[340068233,1728459054898,-500.0,0.00041096,31]
[340068234,1728459054916,-500.0,0.00041096,31]
[340068235,1728459054932,-500.0,0.00041096,31]
[340068236,1728459054950,-500.0,0.00041096,31]
[340068237,1728459054969,-500.0,0.00041096,31]
[340068238,1728459054984,-749.867642,0.00041096,120]
[340068239,1728459054998,-265.07077637,0.000412,36]
[340068240,1728459055015,-352.712753,0.00041315,120]
[340068241,1728459055031,-1050.0,0.00041504,7]
[340068242,1728459055045,-2000.0,0.00041587,2]
[340068243,1728459055059,-151.0,0.00041643,31]
[340068244,1728459055076,-1007.56187787,0.00041687,7]
[340068245,1728459055092,-2000.0,0.00042,42]
[340068246,1728459055106,-1150.0,0.00042052,7]
[340068247,1728459055123,-413.3241676,0.00042466,30]
[340068248,1728459055139,-153.0,0.00042466,30]
[340068249,1728459055150,-153.0,0.00042466,30]
[340068250,1728459055162,-153.0,0.00042466,30]
[340068251,1728459055177,-419.2821794,0.00042466,30]
[340068252,1728459055192,-150.0,0.000425,2]
[340068253,1728459055206,-526.0,0.000425,2]
[340068254,1728459055219,-1219.0,0.000425,2]
[340068255,1728459055233,-1250.0,0.000426,7]
[340068256,1728459055245,-150.0,0.00042658,2]
[340068257,1728459055258,-2000.0,0.00043,43]
[340068258,1728459055270,-1350.0,0.00043148,7]
[340068259,1728459055283,-153.0,0.00043288,30]
[340068260,1728459055294,-153.0,0.00043288,30]
[340068261,1728459055308,-153.0,0.00043288,30]
[340068262,1728459055321,-1528.16945868,0.00043381,2]
[340068263,1728459055334,-1450.0,0.00043696,7]
[340068264,1728459055348,-2000.0,0.00044,44]
[340068265,1728459055361,-153.0,0.0004411,30]
[340068266,1728459055374,-500.0,0.00044178,2]
[340068267,1728459055387,-1550.0,0.00044244,7]
[340068268,1728459055399,-5000.0,0.00044268,4]
[340068269,1728459055412,-153.633273,0.00044274,30]
[340068270,1728459055425,-270.7047425,0.00044274,30]
[340068271,1728459055436,-153.0,0.00044274,30]
[340068272,1728459055449,-257.0819352,0.00044603,30]
[340068273,1728459055461,-153.0,0.00044603,30]
[340068274,1728459055474,-153.0,0.00044603,30]
[340068275,1728459055486,-153.0,0.00044603,30]
[340068276,1728459055498,-153.0,0.00044603,30]
[340068277,1728459055515,-158.7765364,0.00044603,30]
[340068278,1728459055529,-153.0,0.00044603,30]
[340068279,1728459055543,-153.0,0.00044603,30]
[340068280,1728459055557,-153.0,0.00044603,30]
[340068281,1728459055570,-153.0,0.00044603,30]
[340068282,1728459055583,-153.0,0.00044603,30]
[340068283,1728459055597,-153.0,0.00044603,30]
[340068284,1728459055611,-153.0,0.00044603,30]
[340068285,1728459055627,-168.407127,0.00044603,120]
[340068286,1728459055641,-168.40712,0.00044603,120]
[340068287,1728459055655,-839.794439,0.00044603,120]
[340068288,1728459055669,-839.794439,0.00044603,120]
[340068289,1728459055684,-150.0,0.00044657,120]
[340068290,1728459055696,-400.0,0.00044658,2]
[340068291,1728459055710,-1650.0,0.00044792,7]
[340068292,1728459055723,-278.3129298,0.00044932,30]
[340068293,1728459055736,-209.799474,0.00044932,30]
[340068294,1728459055748,-209.799474,0.00044932,30]
[340068295,1728459055761,-209.799474,0.00044932,30]
[340068296,1728459055773,-167.3845669,0.00044932,30]
[340068297,1728459055785,-2000.0,0.00045,45]
[340068298,1728459055797,-151.0,0.00045057,31]
[340068299,1728459055811,-1750.0,0.0004534,7]
[340068300,1728459055823,-3301.09786158,0.000454,28]
[340068301,1728459055836,-153.0,0.00045425,30]
[340068302,1728459055848,-153.0,0.00045425,30]
[340068303,1728459055861,-153.0,0.00045425,30]
[340068304,1728459055876,-500.0,0.00045479,120]
[340068305,1728459055982,-150.0,0.000455,2]
[340068306,1728459056026,-526.0,0.000455,2]
[340068307,1728459056036,-1219.0,0.000455,2]
[340068308,1728459056046,-150.0,0.00045658,2]
[340068309,1728459056056,-194.598349,0.00045753,120]
[340068310,1728459056065,-194.598343,0.00045753,120]
[340068311,1728459056075,-225.492407,0.00045753,100]
[340068312,1728459056084,-225.49241,0.00045753,100]
[340068313,1728459056094,-151.0,0.00045753,120]
[340068314,1728459056105,-157.009987,0.00045753,120]
[340068315,1728459056114,-151.0,0.00045753,120]
[340068316,1728459056126,-747.070307,0.00045753,120]
[340068317,1728459056136,-747.070306,0.00045753,120]
[340068318,1728459056146,-1850.0,0.00045888,7]
[340068319,1728459056156,-2000.0,0.00046,46]
[340068320,1728459056165,-150.0,0.00046027,120]
[340068321,1728459056175,-153.0,0.00046363,120]
[340068322,1728459056185,-153.0,0.00046363,120]
[340068323,1728459056194,-153.0,0.00046363,120]
[340068324,1728459056204,-153.0,0.00046363,120]
[340068325,1728459056213,-153.0,0.00046363,120]
[340068326,1728459056223,-153.0,0.00046363,120]
[340068327,1728459056232,-153.0,0.00046363,120]
[340068328,1728459056241,-153.0,0.00046363,120]
[340068329,1728459056251,-153.0,0.00046363,120]
[340068330,1728459056260,-153.0,0.00046363,120]
[340068331,1728459056269,-153.0,0.00046363,120]
[340068332,1728459056278,-153.0,0.00046363,120]
[340068333,1728459056288,-153.0,0.00046363,120]
[340068334,1728459056298,-153.0,0.00046363,120]
[340068335,1728459056309,-153.0,0.00046363,120]
[340068336,1728459056318,-153.0,0.00046363,120]
[340068337,1728459056329,-153.0,0.00046363,120]
[340068338,1728459056338,-153.0,0.00046363,120]
[340068339,1728459056347,-153.0,0.00046363,120]
[340068340,1728459056356,-153.0,0.00046363,120]
[340068341,1728459056365,-153.0,0.00046363,120]
[340068342,1728459056374,-153.0,0.00046363,120]
[340068343,1728459056383,-153.0,0.00046377,120]
[340068344,1728459056392,-153.0,0.00046377,120]
[340068345,1728459056402,-153.0,0.00046377,120]
[340068346,1728459056411,-153.0,0.00046377,120]
[340068347,1728459056421,-153.0,0.00046377,120]
[340068348,1728459056430,-153.0,0.00046377,120]
[340068349,1728459056440,-153.0,0.00046377,120]
[340068350,1728459056449,-153.0,0.00046377,120]
[340068351,1728459056459,-153.0,0.00046377,120]
[340068352,1728459056468,-153.0,0.00046377,120]
[340068353,1728459056477,-153.0,0.00046377,120]
[340068354,1728459056487,-153.0,0.00046377,120]
[340068355,1728459056496,-153.0,0.00046377,120]
[340068356,1728459056507,-153.0,0.00046377,120]
[340068357,1728459056520,-153.0,0.00046377,120]
[340068358,1728459056531,-153.0,0.00046377,120]
[340068359,1728459056541,-153.0,0.00046377,120]
[340068360,1728459056551,-153.0,0.00046377,120]
[340068361,1728459056562,-153.0,0.00046377,120]
[340068362,1728459056573,-153.0,0.00046377,120]
[340068363,1728459056582,-153.0,0.00046377,120]
[340068364,1728459056591,-153.0,0.00046377,120]
[340068365,1728459056602,-153.0,0.00046377,120]
[340068366,1728459056612,-153.0,0.00046377,120]
[340068367,1728459056624,-153.0,0.00046377,120]
[340068368,1728459056633,-153.0,0.00046377,120]
[340068369,1728459056645,-153.0,0.00046377,120]
[340068370,1728459056655,-153.0,0.00046377,120]
[340068371,1728459056664,-153.0,0.00046377,120]
[340068372,1728459056675,-623.6369753,0.00046436,7]
[340068373,1728459056684,-352.712753,0.0004663,120]
[340068374,1728459056695,-2000.0,0.00047,47]
[340068375,1728459056704,-1528.16945868,0.00047127,2]
[340068376,1728459056714,-150.0,0.00047397,120]
[340068377,1728459056725,-153.0,0.00047397,30]
[340068378,1728459056737,-413.3241676,0.00047397,30]
[340068379,1728459056749,-457.1908624,0.00047397,30]
[340068380,1728459056759,-209.799474,0.00047397,30]
[340068381,1728459056771,-153.0,0.00047397,30]
[340068382,1728459056781,-413.3241676,0.00047397,30]
[340068383,1728459056790,-153.0,0.00047397,30]
[340068384,1728459056800,-209.799474,0.00047397,30]
[340068385,1728459056810,-209.799474,0.00047397,30]
[340068386,1728459056819,-354.5514413,0.00047397,30]
[340068387,1728459056829,-153.0,0.00047397,30]
[340068388,1728459056841,-209.799474,0.00047397,30]
[340068389,1728459056853,-153.0,0.00047397,30]
[340068390,1728459056864,-193.65836935,0.00047562,120]
[340068391,1728459056874,-153.0,0.0004789,30]
[340068392,1728459056884,-153.0,0.0004789,30]
[340068393,1728459056895,-153.0,0.0004789,30]
[340068394,1728459056905,-153.0,0.0004789,30]
[340068395,1728459056916,-2000.0,0.00048,48]
[340068396,1728459056926,-562.64167849,0.00048,30]
[340068397,1728459056936,-237.0,0.00048,120]
[340068398,1728459056947,-1000.0,0.00048,120]
[340068399,1728459056959,-151.0,0.00048,120]
[340068400,1728459056969,-219.005435,0.00048,120]
[340068401,1728459056978,-2755.339772,0.00048,60]
[340068402,1728459056988,-2755.339782,0.00048,60]
[340068403,1728459056999,-749.867642,0.00048,120]
[340068404,1728459057010,-5000.0,0.00048118,5]
[340068405,1728459057021,-209.799474,0.00048219,30]
[340068406,1728459057031,-153.0,0.00048219,30]
[340068407,1728459057042,-153.0,0.00048219,30]
[340068408,1728459057053,-209.799474,0.00048219,30]
[340068409,1728459057065,-153.0,0.00048219,30]
[340068410,1728459057077,-209.799474,0.00048219,30]
[340068411,1728459057087,-153.0,0.00048219,30]
[340068412,1728459057096,-209.799474,0.00048219,30]
[340068413,1728459057106,-153.0,0.00048219,30]
[340068414,1728459057115,-209.799474,0.00048219,30]
[340068415,1728459057125,-306.0,0.00048219,30]
[340068416,1728459057135,-209.799474,0.00048219,30]
[340068417,1728459057145,-839.794439,0.00048398,120]
[340068418,1728459057155,-839.794436,0.00048398,120]
[340068419,1728459057164,-125729.68195633,0.00048398,8]
[340068420,1728459057174,-151.0,0.00048471,60]
[340068421,1728459057184,-150.0,0.000485,2]
[340068422,1728459057195,-526.0,0.000485,2]
[340068423,1728459057208,-255.29241492,0.00048501,8]
[340068424,1728459057220,-150.0,0.00048658,2]
[340068425,1728459057232,-169.91336845,0.00048767,120]
[340068426,1728459057243,-249.30712079,0.000488,120]
[340068427,1728459057253,-2000.0,0.00049,49]
[340068428,1728459057263,-500.0,0.00049315,2]
[340068429,1728459057273,-516.75,0.00049315,30]
[340068430,1728459057282,-500.0,0.00049315,120]
[340068431,1728459057291,-400.0,0.00049517,2]
[340068432,1728459057303,-1000.0,0.00049517,30]
[340068433,1728459057314,-500.0,0.00049863,2]
[340068434,1728459057324,-2500.0,0.00049959,14]
[340068435,1728459057336,-885.83857054,0.00049959,14]
[340068436,1728459057351,-2000.0,0.0005,50]
[340068437,1728459057361,-14267.0,0.0005,120]
[340068438,1728459057371,-2000.0,0.0005,120]
[340068439,1728459057380,-6008.9062674,0.0005,120]
[340068440,1728459057390,-2912.60732173,0.0005,2]
[340068441,1728459057400,-200.0,0.0005,120]
[340068442,1728459057410,-2000.0,0.0005,30]
[340068443,1728459057419,-200.0,0.0005,120]
[340068444,1728459057430,-3003.74870824,0.0005,120]
[340068445,1728459057441,-153.0,0.00050027,30]
[340068446,1728459057452,-153.0,0.00050027,30]
[340068447,1728459057462,-153.0,0.00050027,30]
[340068448,1728459057473,-153.0,0.00050027,30]
[340068449,1728459057482,-153.0,0.00050027,30]
[340068450,1728459057492,-200.9145275,0.00050027,30]
[340068451,1728459057502,-3301.09786158,0.0005023,28]
[340068452,1728459057514,-500.0,0.0005041,2]
[340068453,1728459057525,-160.0,0.00050573,3]
[340068454,1728459057534,-516.75,0.00050684,35]
[340068455,1728459057544,-153.0,0.00050849,30]
[340068456,1728459057555,-153.0,0.00050849,30]
[340068457,1728459057564,-153.0,0.00050849,30]
[340068458,1728459057574,-153.0,0.00050849,30]
[340068459,1728459057584,-1528.16945868,0.00050872,2]
[340068460,1728459057594,-500.0,0.00050958,2]
[340068461,1728459057603,-2000.0,0.00051,51]
[340068462,1728459057612,-3000.0,0.00051,85]
[340068463,1728459057622,-3000.0,0.0005101,85]
[340068464,1728459057632,-3000.0,0.0005102,85]
[340068465,1728459057642,-3000.0,0.0005103,85]
[340068466,1728459057653,-3000.0,0.0005104,85]
[340068467,1728459057663,-3000.0,0.0005105,85]
[340068468,1728459057674,-3000.0,0.0005106,85]
[340068469,1728459057683,-3000.0,0.0005107,85]
[340068470,1728459057693,-5348.797897,0.0005108,85]
[340068471,1728459057702,-153.0,0.00051178,30]
[340068472,1728459057711,-153.0,0.00051178,30]
[340068473,1728459057721,-153.0,0.00051178,30]
[340068474,1728459057730,-153.0,0.00051178,30]
[340068475,1728459057740,-153.0,0.00051178,30]
[340068476,1728459057750,-153.0,0.00051178,30]
[340068477,1728459057762,-526.0,0.000515,120]
[340068478,1728459057772,-500.0,0.00051506,2]
[340068479,1728459057782,-153.0,0.00051671,30]
[340068480,1728459057793,-152.0,0.00051802,60]
[340068481,1728459057803,-151.0,0.00051885,60]
[340068482,1728459057816,-352.712753,0.00051945,120]
[340068483,1728459057826,-2000.0,0.00052,52]
[340068484,1728459057838,-289.0,0.00052,120]
[340068485,1728459057849,-500.0,0.00052,120]
[340068486,1728459057860,-500.0,0.00052054,2]
[340068487,1728459057871,-516.75,0.00052054,40]
[340068488,1728459057882,-289.0,0.00052329,120]
[340068489,1728459057893,-413.3241676,0.00052329,30]
[340068490,1728459057903,-419.0043835,0.00052329,30]
[340068491,1728459057912,-413.3241676,0.00052329,30]
[340068492,1728459057922,-413.3241676,0.00052329,30]
[340068493,1728459057931,-273.8148922,0.00052329,30]
[340068494,1728459057941,-153.0,0.00052493,30]
[340068495,1728459057951,-153.0,0.00052493,30]
[340068496,1728459057963,-153.0,0.00052493,30]
[340068497,1728459057972,-500.0,0.00052602,2]
[340068498,1728459057982,-152.0,0.00052633,90]
[340068499,1728459057991,-600.0,0.000528,2]
[340068500,1728459058002,-3200.0,0.00052981,30]
[340068501,1728459058012,-150.186,0.00052981,30]
[340068502,1728459058022,-2000.0,0.00053,53]
[340068503,1728459058031,-181.289212,0.0005305,30]
[340068504,1728459058041,-184.417514,0.0005305,30]
[340068505,1728459058050,-166.599944,0.0005305,30]
[340068506,1728459058060,-254.082488,0.0005305,30]
[340068507,1728459058069,-199.450955,0.0005305,30]
[340068508,1728459058079,-254.082488,0.0005305,30]
[340068509,1728459058088,-500.0,0.0005315,2]
[340068510,1728459058098,-602.84821764,0.0005335,2]
[340068511,1728459058108,-160.0,0.00053381,4]
[340068512,1728459058118,-516.75,0.00053424,45]
[340068513,1728459058127,-152.0,0.00053463,90]
[340068514,1728459058137,-153.0,0.00053644,30]
[340068515,1728459058147,-153.0,0.00053644,30]
[340068516,1728459058157,-153.0,0.00053644,30]
[340068517,1728459058255,-153.0,0.00053644,30]